Workbook

Sheet OPĆI DIO
A1: PRIJEDLOG FINANCIJSKOG PLANA
A2: =+'PLAN RASHODA I IZDATAKA'!B5 -> OSNOVNA ŠKOLA DUGOPOLJE ,DUGOPOLJE
A4: ZA 2019. I PROJEKCIJA PLANA ZA 2020. I 2021. GODINU
A5: OPĆI DIO
F8: Prijedlog plana za 2019. | G8: Projekcija plana za 2020. | H8: Projekcija plana za 2021.
A9: PRIHODI UKUPNO | F9: =SUM(F10:F11) -> 5508512 | G9: =SUM(G10:G11) -> 5280609 | H9: =SUM(H10:H11) -> 5332860
A10: PRIHODI POSLOVANJA | F10: 5508512 | G10: 5280609 | H10: 5332860
A11: PRIHODI OD PRODAJE NEFINANCIJSKE IMOVINE
A12: RASHODI UKUPNO | F12: =SUM(F13:F14) -> 5508512 | G12: =SUM(G13:G14) -> 5280609 | H12: =SUM(H13:H14) -> 5332860
A13: RASHODI POSLOVANJA | F13: 5508512 | G13: 5280609 | H13: 5332860
A14: RASHODI ZA NEFINANCIJSKU IMOVINU
A15: RAZLIKA - VIŠAK / MANJAK | F15: =+F9-F12 -> 0 | G15: =+G9-G12 -> 0 | H15: =+H9-H12 -> 0
F17: =+F8 -> Prijedlog plana za 2019. | G17: =+G8 -> Projekcija plana za 2020. | H17: =+H8 -> Projekcija plana za 2021.
A18: VIŠAK/MANJAK IZ PRETHODNE GODINE | F18: 0 | G18: 0 | H18: 0
F20: =+F8 -> Prijedlog plana za 2019. | G20: =+G8 -> Projekcija plana za 2020. | H20: =+H8 -> Projekcija plana za 2021.
A21: PRIMICI OD FINANCIJSKE IMOVINE I ZADUŽIVANJA
A22: IZDACI ZA FINANCIJSKU IMOVINU I OTPLATE ZAJMOVA
A23: NETO FINANCIRANJE | F23: =+F21-F22 -> 0 | G23: =+G21-G22 -> 0 | H23: =+H21-H22 -> 0
A25: VIŠAK / MANJAK + NETO FINANCIRANJE | F25: =SUM(F15,F18,F23) -> 0 | G25: =SUM(G15,G18,G23) -> 0 | H25: =SUM(H15,H18,H23) -> 0

Sheet PLAN PRIHODA
A1: PLAN PRIHODA I PRIMITAKA
C2: =+'PLAN RASHODA I IZDATAKA'!B5 -> OSNOVNA ŠKOLA DUGOPOLJE ,DUGOPOLJE
N4: u kunama
A5: Izvor prihoda i primitaka | B5: 2019.
B6: OPĆI PRIHODI I PRIMICI PRORAČUNSKIH KORISNIKA SDŽ | G6: Vlastiti prihodi proračunskih korisnika SDŽ | H6: Prihodi za posebne namjene proračunskih korisnika | I6: Pomoći proračunskim korisnicima SDŽ | K6: Pomoći EU za proračunske korisnike SDŽ | L6: Donacije proračunskim korisnicima SDŽ | M6: Prihodi od prodaje ili zamjene nefinancijske imovine i naknade s naslova osiguranja proračunskih korisnika SDŽ | N6: Namjenski primici od zaduživanja prorčunskih korisnika SDŽ
A7: Oznaka rač.iz računskog plana (treća razina) | B7: DECENTRALIZIRANA SREDSTVA SDŽ | C7: MATIČNA SREDSTVA SDŽ | D7: PRIHODI ZA POSEBNE NAMJENE (ostvareni preko SDŽ) | E7: POMOĆI EU (ostvarene preko SDŽ) | F7: POMOĆI (ostvarene preko SDŽ) | I7: Sredstva iz Državnog proračuna /za plaće zaposlenih/ | J7: Pomoći Državni proračun /JLS/Proračunski i izvanproračunski korisnici ….
A8: 636 | I8: 4497062 | J8: 137012
A9: 652 | H9: 110000
A10: 641 | G10: 50
A11: 671 | B11: 764388
A24: Ukupno (po izvorima) | B24: =SUM(B8:B23) -> 764388 | C24: =SUM(C8:C23) -> 0 | D24: 0 | E24: 0 | F24: 0 | G24: 50 | H24: 110000 | I24: 4497062 | J24: 137012 | K24: 0 | L24: 0 | M24: 0 | N24: 0
A25: Ukupno prihodi i primici za 2019. | B25: =SUM(B24:N24) -> 5508512
A27: Izvor prihoda i primitaka | B27: 2020.
B28: OPĆI PRIHODI I PRIMICI PRORAČUNSKIH KORISNIKA SDŽ | G28: Vlastiti prihodi proračunskih korisnika SDŽ | H28: Prihodi za posebne namjene proračunskih korisnika | I28: Pomoći proračunskim korisnicima SDŽ | K28: Pomoći EU za proračunske korisnike SDŽ | L28: Donacije proračunskim korisnicima SDŽ | M28: Prihodi od prodaje ili zamjene nefinancijske imovine i naknade s naslova osiguranja proračunskih korisnika SDŽ | N28: Namjenski primici od zaduživanja prorčunskih korisnika SDŽ
A29: Oznaka rač.iz računskog plana (druga razina) | B29: DECENTRALIZIRANA SREDSTVA SDŽ | C29: MATIČNA SREDSTVA SDŽ | D29: PRIHODI ZA POSEBNE NAMJENE (ostvareni preko SDŽ) | E29: POMOĆI EU (ostvarene preko SDŽ) | F29: POMOĆI (ostvarene preko SDŽ) | I29: Sredstva iz Državnog proračuna /za plaće zaposlenih/ | J29: Pomoći Državni proračun /JLS/Proračunski i izvanproračunski korisnici ….
A30: 636 | I30: 4516221
A31: 652
A32: 641
A33: 671 | B33: 764388
A43: Ukupno (po izvorima) | B43: =SUM(B30:B42) -> 764388 | C43: =SUM(C30:C42) -> 0 | D43: 0 | E43: 0 | F43: 0 | G43: 0 | H43: 0 | I43: 4516221 | J43: 0 | K43: 0 | L43: 0 | M43: 0 | N43: 0
A44: Ukupno prihodi i primici za 2020. | B44: =SUM(B43:N43) -> 5280609
A46: Izvor prihoda i primitaka | B46: 2021.
B47: OPĆI PRIHODI I PRIMICI PRORAČUNSKIH KORISNIKA SDŽ | G47: Vlastiti prihodi proračunskih korisnika SDŽ | H47: Prihodi za posebne namjene proračunskih korisnika | I47: Pomoći proračunskim korisnicima SDŽ | K47: Pomoći EU za proračunske korisnike SDŽ | L47: Donacije proračunskim korisnicima SDŽ | M47: Prihodi od prodaje ili zamjene nefinancijske imovine i naknade s naslova osiguranja proračunskih korisnika SDŽ | N47: Namjenski primici od zaduživanja prorčunskih korisnika SDŽ
A48: Oznaka rač.iz računskog plana (druga razina) | B48: DECENTRALIZIRANA SREDSTVA SDŽ | C48: MATIČNA SREDSTVA SDŽ | D48: PRIHODI ZA POSEBNE NAMJENE (ostvareni preko SDŽ) | E48: POMOĆI EU (ostvarene preko SDŽ) | F48: POMOĆI (ostvarene preko SDŽ) | I48: Sredstva iz Državnog proračuna /za plaće zaposlenih/ | J48: Pomoći Državni proračun /JLS/Proračunski i izvanproračunski korisnici ….
A49: 636 | I49: 4568472
A50: 652
A51: 641
A52: 671 | B52: 764388
A62: Ukupno (po izvorima) | B62: =SUM(B49:B61) -> 764388 | C62: 0 | D62: 0 | E62: 0 | F62: 0 | G62: 0 | H62: 0 | I62: 4568472 | J62: 0 | K62: 0 | L62: 0 | M62: 0 | N62: 0
A63: Ukupno prihodi i primici za 2021. | B63: =SUM(B62:N62) -> 5332860

Sheet PLAN RASHODA I IZDATAKA
A1: FINANCIJSKI PLAN PRORAČUNSKOG KORISNIKA (PK) Osnovne škole | C1: PLAN RASHODA I IZDATAKA | Q1: PLAN RASHODA I IZDATAKA | AE1: PLAN RASHODA I IZDATAKA
C3: 2019. | Q3: 2020. | AE3: 2021.
A4: RKP broj | B4: 13238 | C4: PRIJEDLOG PLANA ZA 2019. | D4: OPĆI PRIHODI I PRIMICI PRORAČUNSKIH KORISNIKA SDŽ | I4: Vlastiti prihodi proračunskih korisnika SDŽ | J4: Prihodi za posebne namjene proračunskih korisnika | K4: Pomoći proračunskim korisnicima SDŽ | M4: Pomoći EU za proračunske korisnike SDŽ - VI | N4: Donacije proračunskim korisnicima SDŽ | O4: Prihodi od prodaje ili zamjene nefinancijske imovine i naknade s naslova osiguranja proračunskih korisnika SDŽ | P4: Namjenski primici od zaduživanja prorčunskih korisnika SDŽ | Q4: PROJEKCIJA PLANA ZA 2020. | R4: OPĆI PRIHODI I PRIMICI PRORAČUNSKIH KORISNIKA SDŽ | W4: Vlastiti prihodi proračunskih korisnika SDŽ | X4: Prihodi za posebne namjene proračunskih korisnika | Y4: Pomoći proračunskim korisnicima SDŽ | AA4: Pomoći EU za proračunske korisnike SDŽ | AB4: Donacije proračunskim korisnicima SDŽ | AC4: Prihodi od prodaje ili zamjene nefinancijske imovine i naknade s naslova osiguranja proračunskih korisnika SDŽ | AD4: Namjenski primici od zaduživanja prorčunskih korisnika SDŽ | AE4: PROJEKCIJA PLANA ZA 2021. | AF4: OPĆI PRIHODI I PRIMICI PRORAČUNSKIH KORISNIKA SDŽ | AK4: Vlastiti prihodi proračunskih korisnika SDŽ | AL4: Prihodi za posebne namjene proračunskih korisnika | AM4: Pomoći proračunskim korisnicima SDŽ | AO4: Pomoći EU za proračunske korisnike SDŽ | AP4: Donacije proračunskim korisnicima SDŽ | AQ4: Prihodi od prodaje ili zamjene nefinancijske imovine i naknade s naslova osiguranja proračunskih korisnika SDŽ | AR4: Namjenski primici od zaduživanja prorčunskih korisnika SDŽ
A5: Naziv PK | B5: OSNOVNA ŠKOLA DUGOPOLJE ,DUGOPOLJE | D5: DECENTRALIZIRANA SREDSTVA SDŽ | E5: MATIČNA SREDSTVA SDŽ | F5: PRIHODI ZA POSEBNE NAMJENE (ostvareni preko SDŽ) | G5: POMOĆI EU (ostvarene preko SDŽ) | H5: POMOĆI (ostvarene preko SDŽ) | K5: Sredstva iz Državnog proračuna /za plaće zaposlenih/ | L5: Pomoći Državni proračun /JLS/Proračunski i izvanproračunski korisnici …. | R5: DECENTRALIZIRANA SREDSTVA SDŽ | S5: MATIČNA SREDSTVA SDŽ | T5: PRIHODI ZA POSEBNE NAMJENE (ostvareni preko SDŽ) | U5: POMOĆI EU (ostvarene preko SDŽ) | V5: POMOĆI (ostvarene preko SDŽ) | Y5: Sredstva iz Državnog proračuna /za plaće zaposlenih/ | Z5: Pomoći Državni proračun /JLS/Proračunski i izvanproračunski korisnici …. | AF5: DECENTRALIZIRANA SREDSTVA SDŽ | AG5: MATIČNA SREDSTVA SDŽ | AH5: PRIHODI ZA POSEBNE NAMJENE (ostvareni preko SDŽ) | AI5: POMOĆI EU (ostvarene preko SDŽ) | AJ5: POMOĆI (ostvarene preko SDŽ) | AM5: Sredstva iz Državnog proračuna /za plaće zaposlenih/ | AN5: Pomoći Državni proračun /JLS/Proračunski i izvanproračunski korisnici ….
A6: UKUPNO | C6: =SUM(C7,C86) -> 5508512 | D6: =SUM(D7,D86) -> 764388 | E6: 0 | F6: 0 | G6: 0 | H6: 0 | I6: 50 | J6: 110000 | K6: 4497062 | L6: 137012 | M6: 0 | N6: 0 | O6: 0 | P6: 0 | Q6: =SUM(Q7,Q86) -> 5280609 | R6: =SUM(R7,R86) -> 764388 | S6: 0 | T6: 0 | U6: 0 | V6: 0 | W6: 0 | X6: 0 | Y6: 4516221 | Z6: 0 | AA6: 0 | AB6: 0 | AC6: 0 | AD6: 0 | AE6: =SUM(AE7,AE86) -> 5332860 | AF6: 764388 | AG6: 0 | AH6: 0 | AI6: 0 | AJ6: 0 | AK6: 0 | AL6: 0 | AM6: 4568472 | AN6: 0 | AO6: 0 | AP6: 0 | AQ6: 0 | AR6: 0
A7: 4000 | B7: Program Osnovno školstvo | C7: =SUM(C8,C24,C42,C54,C60,C70,C74,C82) -> 5508512 | D7: =SUM(D8,D24,D42,D54,D60,D70,D74,D82) -> 764388 | E7: 0 | F7: 0 | G7: 0 | H7: 0 | I7: 50 | J7: 110000 | K7: 4497062 | L7: 137012 | M7: 0 | N7: 0 | O7: 0 | P7: 0 | Q7: =SUM(Q8,Q24,Q42,Q54,Q60,Q70,Q74,Q82) -> 5280609 | R7: =SUM(R8,R24,R42,R54,R60,R70,R74,R82) -> 764388 | S7: 0 | T7: 0 | U7: 0 | V7: 0 | W7: 0 | X7: 0 | Y7: 4516221 | Z7: 0 | AA7: 0 | AB7: 0 | AC7: 0 | AD7: 0 | AE7: =SUM(AE8,AE24,AE42,AE54,AE60,AE70,AE74,AE82) -> 5332860 | AF7: 764388 | AG7: 0 | AH7: 0 | AI7: 0 | AJ7: 0 | AK7: 0 | AL7: 0 | AM7: 4568472 | AN7: 0 | AO7: 0 | AP7: 0 | AQ7: 0 | AR7: 0
A8: A4000001 | B8: Rashodi djelatnosti | C8: =SUM(C9) -> 5508512 | D8: =SUM(D9) -> 764388 | E8: 0 | F8: 0 | G8: 0 | H8: 0 | I8: 50 | J8: 110000 | K8: 4497062 | L8: 137012 | M8: 0 | N8: 0 | O8: 0 | P8: 0 | Q8: =SUM(Q9) -> 5280609 | R8: =SUM(R9) -> 764388 | S8: 0 | T8: 0 | U8: 0 | V8: 0 | W8: 0 | X8: 0 | Y8: 4516221 | Z8: 0 | AA8: 0 | AB8: 0 | AC8: 0 | AD8: 0 | AE8: =SUM(AE9) -> 5332860 | AF8: 764388 | AG8: 0 | AH8: 0 | AI8: 0 | AJ8: 0 | AK8: 0 | AL8: 0 | AM8: 4568472 | AN8: 0 | AO8: 0 | AP8: 0 | AQ8: 0 | AR8: 0
A9: 3 | B9: Rashodi poslovanja | C9: =SUM(C10,C14,C20,C22) -> 5508512 | D9: =SUM(D10,D14,D20,D22) -> 764388 | E9: 0 | F9: 0 | G9: 0 | H9: 0 | I9: 50 | J9: 110000 | K9: 4497062 | L9: 137012 | M9: 0 | N9: 0 | O9: 0 | P9: 0 | Q9: =SUM(Q10,Q14,Q20,Q22) -> 5280609 | R9: =SUM(R10,R14,R20,R22) -> 764388 | S9: 0 | T9: 0 | U9: 0 | V9: 0 | W9: 0 | X9: 0 | Y9: 4516221 | Z9: 0 | AA9: 0 | AB9: 0 | AC9: 0 | AD9: 0 | AE9: =SUM(AE10,AE14,AE20,AE22) -> 5332860 | AF9: 764388 | AG9: 0 | AH9: 0 | AI9: 0 | AJ9: 0 | AK9: 0 | AL9: 0 | AM9: 4568472 | AN9: 0 | AO9: 0 | AP9: 0 | AQ9: 0 | AR9: 0
A10: 31 | B10: Rashodi za zaposlene | C10: =SUM(C11:C13) -> 4322062 | D10: =SUM(D11:D13) -> 0 | E10: 0 | F10: 0 | G10: 0 | H10: 0 | I10: 0 | J10: 0 | K10: 4322062 | L10: 0 | M10: 0 | N10: 0 | O10: 0 | P10: 0 | Q10: =SUM(R10:AD10) -> 4328838 | Y10: 4328838 | AE10: =SUM(AF10:AR10) -> 4381089 | AM10: 4381089
A11: 311 | B11: Plaće (Bruto) | C11: =SUM(D11:P11) -> 3560000 | K11: 3560000
A12: 312 | B12: Ostali rashodi za zaposlene | C12: =SUM(D12:P12) -> 153302 | K12: 153302
A13: 313 | B13: Doprinosi na plaće | C13: =SUM(D13:P13) -> 608760 | K13: 608760
A14: 32 | B14: Materijalni rashodi | C14: =SUM(C15:C19) -> 1182012 | D14: =SUM(D15:D19) -> 760000 | E14: 0 | F14: 0 | G14: 0 | H14: 0 | I14: 0 | J14: 110000 | K14: 175000 | L14: 137012 | M14: 0 | N14: 0 | O14: 0 | P14: 0 | Q14: =SUM(R14:AD14) -> 947383 | R14: 760000 | Y14: 187383 | AE14: =SUM(AF14:AR14) -> 947383 | AF14: 760000 | AM14: 187383
A15: 321 | B15: Naknade troškova zaposlenima | C15: =SUM(D15:P15) -> 207000 | D15: 32000 | K15: 175000
A16: 322 | B16: Rashodi za materijal i energiju | C16: =SUM(D16:P16) -> 270000 | D16: 270000
A17: 323 | B17: Rashodi za usluge | C17: =SUM(D17:P17) -> 448000 | D17: 448000
A18: 324 | B18: Naknade troškova osobama izvan radnog odnosa | C18: =SUM(D18:P18) -> 14629 | L18: 14629
A19: 329 | B19: Ostali nespomenuti rashodi poslovanja | C19: =SUM(D19:P19) -> 242383 | D19: 10000 | J19: 110000 | L19: 122383
A20: 34 | B20: Financijski rashodi | C20: =SUM(C21) -> 4438 | D20: =SUM(D21) -> 4388 | E20: 0 | F20: 0 | G20: 0 | H20: 0 | I20: 50 | J20: 0 | L20: =SUM(L21) -> 0 | M20: =SUM(M21) -> 0 | N20: =SUM(N21) -> 0 | O20: =SUM(O21) -> 0 | P20: =SUM(P21) -> 0 | Q20: =SUM(R20:AD20) -> 4388 | R20: 4388 | AE20: =SUM(AF20:AR20) -> 4388 | AF20: 4388
A21: 343 | B21: Ostali financijski rashodi | C21: =SUM(D21:P21) -> 4438 | D21: 4388 | I21: 50
A22: 37 | B22: Naknade građanima i kućanstvima na temelju osiguranja i druge naknade | C22: =SUM(C23) -> 0 | D22: =SUM(D23) -> 0 | E22: 0 | F22: 0 | G22: 0 | H22: 0 | I22: 0 | J22: 0 | L22: 0 | M22: 0 | N22: 0 | O22: 0 | P22: 0 | Q22: =SUM(R22:AD22) -> 0 | AE22: =SUM(AF22:AR22) -> 0
A23: 372 | B23: Ostale naknade građanima i kućanstvima iz proračuna | C23: =SUM(D23:P23) -> 0
A24: A4000002 | B24: Izgradnja i uređenje objekata te nabava i održavanje opreme | C24: =SUM(C25,C30) -> 0 | D24: =SUM(D25,D30) -> 0 | E24: 0 | F24: 0 | G24: 0 | H24: 0 | I24: 0 | J24: 0 | L24: =SUM(L25,L30) -> 0 | M24: 0 | N24: 0 | O24: 0 | P24: 0 | Q24: 0 | R24: =SUM(R25,R30) -> 0 | S24: 0 | T24: 0 | U24: 0 | V24: 0 | W24: 0 | X24: 0 | Z24: =SUM(Z25,Z30) -> 0 | AA24: 0 | AB24: 0 | AC24: 0 | AD24: 0 | AE24: 0 | AF24: 0 | AG24: 0 | AH24: 0 | AI24: 0 | AJ24: 0 | AK24: 0 | AL24: 0 | AN24: =SUM(AN25,AN30) -> 0 | AO24: =SUM(AO25,AO30) -> 0 | AP24: =SUM(AP25,AP30) -> 0 | AQ24: =SUM(AQ25,AQ30) -> 0 | AR24: =SUM(AR25,AR30) -> 0
A25: 3 | B25: Rashodi poslovanja | C25: =SUM(C26) -> 0 | D25: =SUM(D26) -> 0 | E25: 0 | F25: 0 | G25: 0 | H25: 0 | I25: 0 | J25: 0 | L25: =SUM(L26) -> 0 | M25: 0 | N25: 0 | O25: 0 | P25: 0 | Q25: 0 | R25: =SUM(R26) -> 0 | S25: 0 | T25: 0 | U25: 0 | V25: 0 | W25: 0 | X25: 0 | Z25: =SUM(Z26) -> 0 | AA25: 0 | AB25: 0 | AC25: 0 | AD25: 0 | AE25: 0 | AF25: 0 | AG25: 0 | AH25: 0 | AI25: 0 | AJ25: 0 | AK25: 0 | AL25: 0 | AN25: =SUM(AN26) -> 0 | AO25: =SUM(AO26) -> 0 | AP25: =SUM(AP26) -> 0 | AQ25: =SUM(AQ26) -> 0 | AR25: =SUM(AR26) -> 0
A26: 32 | B26: Materijalni rashodi | C26: =SUM(C27:C29) -> 0 | D26: =SUM(D27:D29) -> 0 | E26: 0 | F26: 0 | G26: 0 | H26: 0 | I26: 0 | J26: 0 | L26: =SUM(L27:L29) -> 0 | M26: =SUM(M27:M29) -> 0 | N26: =SUM(N27:N29) -> 0 | O26: =SUM(O27:O29) -> 0 | P26: =SUM(P27:P29) -> 0 | Q26: =SUM(R26:AD26) -> 0 | AE26: =SUM(AF26:AR26) -> 0
A27: 322 | B27: Rashodi za materijal i energiju | C27: =SUM(D27:P27) -> 0
A28: 323 | B28: Rashodi za usluge | C28: =SUM(D28:P28) -> 0
A29: 329 | B29: Ostali nespomenuti rashodi poslovanja | C29: =SUM(D29:P29) -> 0
A30: 4 | B30: Rashodi za nabavu nefinancijske imovine | C30: =SUM(C31,C37) -> 0 | D30: =SUM(D31,D37) -> 0 | E30: 0 | F30: 0 | G30: 0 | H30: 0 | I30: 0 | J30: 0 | L30: =SUM(L31,L37) -> 0 | M30: 0 | N30: 0 | O30: 0 | P30: 0 | Q30: 0 | R30: =SUM(R31,R37) -> 0 | S30: 0 | T30: 0 | U30: 0 | V30: 0 | W30: 0 | X30: 0 | Z30: =SUM(Z31,Z37) -> 0 | AA30: 0 | AB30: 0 | AC30: 0 | AD30: 0 | AE30: 0 | AF30: 0 | AG30: 0 | AH30: 0 | AI30: 0 | AJ30: 0 | AK30: 0 | AL30: 0 | AN30: =SUM(AN31,AN37) -> 0 | AO30: =SUM(AO31,AO37) -> 0 | AP30: =SUM(AP31,AP37) -> 0 | AQ30: =SUM(AQ31,AQ37) -> 0 | AR30: =SUM(AR31,AR37) -> 0
A31: 42 | B31: Rashodi za nabavu proizvedene dugotrajne imovine | C31: =SUM(C32:C36) -> 0 | D31: =SUM(D32:D36) -> 0 | E31: 0 | F31: 0 | G31: 0 | H31: 0 | I31: 0 | J31: 0 | L31: =SUM(L32:L36) -> 0 | M31: =SUM(M32:M36) -> 0 | N31: =SUM(N32:N36) -> 0 | O31: =SUM(O32:O36) -> 0 | P31: =SUM(P32:P36) -> 0 | Q31: =SUM(R31:AD31) -> 0 | AE31: =SUM(AF31:AR31) -> 0
A32: 421 | B32: Građevinski objekti | C32: =SUM(D32:P32) -> 0
A33: 422 | B33: Postrojenja i oprema | C33: =SUM(D33:P33) -> 0
A34: 423 | B34: Prijevozna sredstva | C34: =SUM(D34:P34) -> 0
A35: 424 | B35: Knjige, umjetnička djela i ostale izložbene vrijednosti | C35: =SUM(D35:P35) -> 0
A36: 426 | B36: Nematerijalna proizvedena imovina | C36: =SUM(D36:P36) -> 0
A37: 45 | B37: Rashodi za dodatna ulaganja na nefinancijskoj imovini | C37: =SUM(C38:C41) -> 0 | D37: =SUM(D38:D41) -> 0 | E37: 0 | F37: 0 | G37: 0 | H37: 0 | I37: 0 | J37: 0 | L37: =SUM(L38:L41) -> 0 | M37: =SUM(M38:M41) -> 0 | N37: =SUM(N38:N41) -> 0 | O37: =SUM(O38:O41) -> 0 | P37: =SUM(P38:P41) -> 0 | Q37: =SUM(R37:AD37) -> 0 | AE37: =SUM(AF37:AR37) -> 0
A38: 451 | B38: Dodatna ulaganja na građevinskim objektima | C38: =SUM(D38:P38) -> 0
A39: 452 | B39: Dodatna ulaganja na postrojenjima i opremi | C39: =SUM(D39:P39) -> 0
A40: 453 | B40: Dodatna ulaganja na prijevoznim sredstvima | C40: =SUM(D40:P40) -> 0
A41: 454 | B41: Dodatna ulaganja za ostalu nefinancijsku imovinu | C41: =SUM(D41:P41) -> 0
A42: A4000003 | B42: Natjecanja, manifestacije i ostalo | C42: =SUM(C43) -> 0 | D42: =SUM(D43) -> 0 | E42: 0 | F42: 0 | G42: 0 | H42: 0 | I42: 0 | J42: 0 | L42: =SUM(L43) -> 0 | M42: 0 | N42: 0 | O42: 0 | P42: 0 | Q42: 0 | R42: =SUM(R43) -> 0 | S42: 0 | T42: 0 | U42: 0 | V42: 0 | W42: 0 | X42: 0 | Z42: =SUM(Z43) -> 0 | AA42: 0 | AB42: 0 | AC42: 0 | AD42: 0 | AE42: 0 | AF42: 0 | AG42: 0 | AH42: 0 | AI42: 0 | AJ42: 0 | AK42: 0 | AL42: 0 | AN42: =SUM(AN43) -> 0 | AO42: =SUM(AO43) -> 0 | AP42: =SUM(AP43) -> 0 | AQ42: =SUM(AQ43) -> 0 | AR42: =SUM(AR43) -> 0
A43: 3 | B43: Rashodi poslovanja | C43: =SUM(C44,C50,C52) -> 0 | D43: =SUM(D44,D50,D52) -> 0 | E43: 0 | F43: 0 | G43: 0 | H43: 0 | I43: 0 | J43: 0 | L43: =SUM(L44,L50,L52) -> 0 | M43: 0 | N43: 0 | O43: 0 | P43: 0 | Q43: 0 | R43: =SUM(R44,R50,R52) -> 0 | S43: 0 | T43: 0 | U43: 0 | V43: 0 | W43: 0 | X43: 0 | Z43: =SUM(Z44,Z50,Z52) -> 0 | AA43: 0 | AB43: 0 | AC43: 0 | AD43: 0 | AE43: 0 | AF43: 0 | AG43: 0 | AH43: 0 | AI43: 0 | AJ43: 0 | AK43: 0 | AL43: 0 | AN43: =SUM(AN44,AN50,AN52) -> 0 | AO43: =SUM(AO44,AO50,AO52) -> 0 | AP43: =SUM(AP44,AP50,AP52) -> 0 | AQ43: =SUM(AQ44,AQ50,AQ52) -> 0 | AR43: =SUM(AR44,AR50,AR52) -> 0
A44: 32 | B44: Materijalni rashodi | C44: =SUM(C45:C49) -> 0 | D44: =SUM(D45:D49) -> 0 | E44: 0 | F44: 0 | G44: 0 | H44: 0 | I44: 0 | J44: 0 | L44: =SUM(L45:L49) -> 0 | M44: =SUM(M45:M49) -> 0 | N44: =SUM(N45:N49) -> 0 | O44: =SUM(O45:O49) -> 0 | P44: =SUM(P45:P49) -> 0 | Q44: =SUM(R44:AD44) -> 0 | AE44: =SUM(AF44:AR44) -> 0
A45: 321 | B45: Naknade troškova zaposlenima | C45: =SUM(D45:P45) -> 0
A46: 322 | B46: Rashodi za materijal i energiju | C46: =SUM(D46:P46) -> 0
A47: 323 | B47: Rashodi za usluge | C47: =SUM(D47:P47) -> 0
A48: 324 | B48: Naknade troškova osobama izvan radnog odnosa | C48: =SUM(D48:P48) -> 0
A49: 329 | B49: Ostali nespomenuti rashodi poslovanja | C49: =SUM(D49:P49) -> 0
A50: 34 | B50: Financijski rashodi | C50: =SUM(C51) -> 0 | D50: =SUM(D51) -> 0 | E50: 0 | F50: 0 | G50: 0 | H50: 0 | I50: 0 | J50: 0 | L50: =SUM(L51) -> 0 | M50: =SUM(M51) -> 0 | N50: =SUM(N51) -> 0 | O50: =SUM(O51) -> 0 | P50: =SUM(P51) -> 0 | Q50: =SUM(R50:AD50) -> 0 | AE50: =SUM(AF50:AR50) -> 0
A51: 343 | B51: Ostali financijski rashodi | C51: =SUM(D51:P51) -> 0
A52: 38 | B52: Ostali rashodi | C52: =SUM(C53) -> 0 | D52: =SUM(D53) -> 0 | E52: 0 | F52: 0 | G52: 0 | H52: 0 | I52: 0 | J52: 0 | L52: =SUM(L53) -> 0 | M52: =SUM(M53) -> 0 | N52: =SUM(N53) -> 0 | O52: =SUM(O53) -> 0 | P52: =SUM(P53) -> 0 | Q52: =SUM(R52:AD52) -> 0 | AE52: =SUM(AF52:AR52) -> 0
A53: 381 | B53: Tekuće donacije u novcu | C53: =SUM(D53:P53) -> 0
A54: A4000005 | B54: Pravno zastupanje, naknade šteta i ostalo | C54: =SUM(C55) -> 0 | D54: =SUM(D55) -> 0 | E54: 0 | F54: 0 | G54: 0 | H54: 0 | I54: 0 | J54: 0 | L54: =SUM(L55) -> 0 | M54: 0 | N54: 0 | O54: 0 | P54: 0 | Q54: 0 | R54: =SUM(R55) -> 0 | S54: 0 | T54: 0 | U54: 0 | V54: 0 | W54: 0 | X54: 0 | Z54: =SUM(Z55) -> 0 | AA54: 0 | AB54: 0 | AC54: 0 | AD54: 0 | AE54: 0 | AF54: 0 | AG54: 0 | AH54: 0 | AI54: 0 | AJ54: 0 | AK54: 0 | AL54: 0 | AN54: =SUM(AN55) -> 0 | AO54: =SUM(AO55) -> 0 | AP54: =SUM(AP55) -> 0 | AQ54: =SUM(AQ55) -> 0 | AR54: =SUM(AR55) -> 0
A55: 3 | B55: Rashodi poslovanja | C55: =SUM(C56,C58) -> 0 | D55: =SUM(D56,D58) -> 0 | E55: 0 | F55: 0 | G55: 0 | H55: 0 | I55: 0 | J55: 0 | L55: =SUM(L56,L58) -> 0 | M55: 0 | N55: 0 | O55: 0 | P55: 0 | Q55: 0 | R55: =SUM(R56,R58) -> 0 | S55: 0 | T55: 0 | U55: 0 | V55: 0 | W55: 0 | X55: 0 | Z55: =SUM(Z56,Z58) -> 0 | AA55: 0 | AB55: 0 | AC55: 0 | AD55: 0 | AE55: 0 | AF55: 0 | AG55: 0 | AH55: 0 | AI55: 0 | AJ55: 0 | AK55: 0 | AL55: 0 | AN55: =SUM(AN56,AN58) -> 0 | AO55: =SUM(AO56,AO58) -> 0 | AP55: =SUM(AP56,AP58) -> 0 | AQ55: =SUM(AQ56,AQ58) -> 0 | AR55: =SUM(AR56,AR58) -> 0
A56: 32 | B56: Materijalni rashodi | C56: =SUM(C57) -> 0 | D56: =SUM(D57) -> 0 | E56: 0 | F56: 0 | G56: 0 | H56: 0 | I56: 0 | J56: 0 | L56: =SUM(L57) -> 0 | M56: =SUM(M57) -> 0 | N56: =SUM(N57) -> 0 | O56: =SUM(O57) -> 0 | P56: =SUM(P57) -> 0 | Q56: =SUM(R56:AD56) -> 0 | AE56: =SUM(AF56:AR56) -> 0
A57: 323 | B57: Rashodi za usluge | C57: =SUM(D57:P57) -> 0
A58: 38 | B58: Ostali rashodi | C58: =SUM(C59) -> 0 | D58: =SUM(D59) -> 0 | E58: 0 | F58: 0 | G58: 0 | H58: 0 | I58: 0 | J58: 0 | L58: =SUM(L59) -> 0 | M58: =SUM(M59) -> 0 | N58: =SUM(N59) -> 0 | O58: =SUM(O59) -> 0 | P58: =SUM(P59) -> 0 | Q58: =SUM(R58:AD58) -> 0 | AE58: =SUM(AF58:AR58) -> 0
A59: 383 | B59: Kazne, penali i naknade štete | C59: =SUM(D59:P59) -> 0
A60: A4000007 | B60: Sufinanciranje osobnih pomoćnika i pomoćnika u nastavi | C60: =SUM(C61) -> 0 | D60: =SUM(D61) -> 0 | E60: 0 | F60: 0 | G60: 0 | H60: 0 | I60: 0 | J60: 0 | L60: =SUM(L61) -> 0 | M60: 0 | N60: 0 | O60: 0 | P60: 0 | Q60: 0 | R60: =SUM(R61) -> 0 | S60: 0 | T60: 0 | U60: 0 | V60: 0 | W60: 0 | X60: 0 | Z60: =SUM(Z61) -> 0 | AA60: 0 | AB60: 0 | AC60: 0 | AD60: 0 | AE60: 0 | AF60: 0 | AG60: 0 | AH60: 0 | AI60: 0 | AJ60: 0 | AK60: 0 | AL60: 0 | AN60: =SUM(AN61) -> 0 | AO60: =SUM(AO61) -> 0 | AP60: =SUM(AP61) -> 0 | AQ60: =SUM(AQ61) -> 0 | AR60: =SUM(AR61) -> 0
A61: 3 | B61: Rashodi poslovanja | C61: =SUM(C62,C66) -> 0 | D61: =SUM(D62,D66) -> 0 | E61: 0 | F61: 0 | G61: 0 | H61: 0 | I61: 0 | J61: 0 | L61: =SUM(L62,L66) -> 0 | M61: 0 | N61: 0 | O61: 0 | P61: 0 | Q61: 0 | R61: =SUM(R62,R66) -> 0 | S61: 0 | T61: 0 | U61: 0 | V61: 0 | W61: 0 | X61: 0 | Z61: =SUM(Z62,Z66) -> 0 | AA61: 0 | AB61: 0 | AC61: 0 | AD61: 0 | AE61: 0 | AF61: 0 | AG61: 0 | AH61: 0 | AI61: 0 | AJ61: 0 | AK61: 0 | AL61: 0 | AN61: =SUM(AN62,AN66) -> 0 | AO61: =SUM(AO62,AO66) -> 0 | AP61: =SUM(AP62,AP66) -> 0 | AQ61: =SUM(AQ62,AQ66) -> 0 | AR61: =SUM(AR62,AR66) -> 0
A62: 31 | B62: Rashodi za zaposlene | C62: =SUM(C63:C65) -> 0 | D62: =SUM(D63:D65) -> 0 | E62: 0 | F62: 0 | G62: 0 | H62: 0 | I62: 0 | J62: 0 | L62: =SUM(L63:L65) -> 0 | M62: =SUM(M63:M65) -> 0 | N62: =SUM(N63:N65) -> 0 | O62: =SUM(O63:O65) -> 0 | P62: =SUM(P63:P65) -> 0 | Q62: =SUM(R62:AD62) -> 0 | AE62: =SUM(AF62:AR62) -> 0
A63: 311 | B63: Plaće (Bruto) | C63: =SUM(D63:P63) -> 0
A64: 312 | B64: Ostali rashodi za zaposlene | C64: =SUM(D64:P64) -> 0
A65: 313 | B65: Doprinosi na plaće | C65: =SUM(D65:P65) -> 0
A66: 32 | B66: Materijalni rashodi | C66: =SUM(C67:C69) -> 0 | D66: =SUM(D67:D69) -> 0 | E66: 0 | F66: 0 | G66: 0 | H66: 0 | I66: 0 | J66: 0 | L66: =SUM(L67:L69) -> 0 | M66: =SUM(M67:M69) -> 0 | N66: =SUM(N67:N69) -> 0 | O66: =SUM(O67:O69) -> 0 | P66: =SUM(P67:P69) -> 0 | Q66: =SUM(R66:AD66) -> 0 | AE66: =SUM(AF66:AR66) -> 0
A67: 321 | B67: Naknade troškova zaposlenima | C67: =SUM(D67:P67) -> 0
A68: 323 | B68: Rashodi za usluge | C68: =SUM(D68:P68) -> 0
A69: 324 | B69: Naknade troškova osobama izvan radnog odnosa | C69: =SUM(D69:P69) -> 0
A70: A4000009 | B70: Nabava školskih knjiga | C70: =SUM(C71) -> 0 | D70: =SUM(D71) -> 0 | E70: 0 | F70: 0 | G70: 0 | H70: 0 | I70: 0 | J70: 0 | L70: =SUM(L71) -> 0 | M70: 0 | N70: 0 | O70: 0 | P70: 0 | Q70: =SUM(Q71) -> 0 | R70: =SUM(R71) -> 0 | S70: 0 | T70: 0 | U70: 0 | V70: 0 | W70: 0 | X70: 0 | Z70: =SUM(Z71) -> 0 | AA70: 0 | AB70: 0 | AC70: 0 | AD70: 0 | AE70: 0 | AF70: 0 | AG70: 0 | AH70: 0 | AI70: 0 | AJ70: 0 | AK70: 0 | AL70: 0 | AN70: =SUM(AN71) -> 0 | AO70: =SUM(AO71) -> 0 | AP70: =SUM(AP71) -> 0 | AQ70: =SUM(AQ71) -> 0 | AR70: =SUM(AR71) -> 0
A71: 4 | B71: Rashodi za nabavu nefinancijske imovine | C71: =SUM(C72) -> 0 | D71: 0 | E71: 0 | F71: 0 | G71: 0 | H71: 0 | I71: 0 | J71: 0 | L71: 0 | M71: 0 | N71: 0 | O71: 0 | P71: 0 | Q71: =SUM(,Q72) -> 0 | R71: =SUM(,R72) -> 0 | S71: 0 | T71: 0 | U71: 0 | V71: 0 | W71: 0 | X71: 0 | Z71: =SUM(,Z72) -> 0 | AA71: 0 | AB71: 0 | AC71: 0 | AD71: 0 | AE71: 0 | AF71: 0 | AG71: 0 | AH71: 0 | AI71: 0 | AJ71: 0 | AK71: 0 | AL71: 0 | AN71: =SUM(,AN72) -> 0 | AO71: =SUM(,AO72) -> 0 | AP71: =SUM(,AP72) -> 0 | AQ71: =SUM(,AQ72) -> 0 | AR71: =SUM(,AR72) -> 0
A72: 42 | B72: Rashodi za nabavu proizvedene dugotrajne imovine | C72: =SUM(C73) -> 0 | D72: 0 | E72: 0 | F72: 0 | G72: 0 | H72: 0 | I72: 0 | J72: 0 | L72: 0 | M72: 0 | N72: 0 | O72: 0 | P72: 0 | Q72: =SUM(R72:AD72) -> 0 | AE72: =SUM(AF72:AR72) -> 0
A73: 424 | B73: Knjige, umjetnička djela i ostale izložbene vrijednosti | C73: =SUM(D73:P73) -> 0
A74: T4000001 | B74: Prehrana djece u osnovnim školama | C74: =SUM(C75) -> 0 | D74: =SUM(D75) -> 0 | E74: 0 | F74: 0 | G74: 0 | H74: 0 | I74: 0 | J74: 0 | L74: =SUM(L75) -> 0 | M74: 0 | N74: 0 | O74: 0 | P74: 0 | Q74: 0 | R74: =SUM(R75) -> 0 | S74: 0 | T74: 0 | U74: 0 | V74: 0 | W74: 0 | X74: 0 | Z74: =SUM(Z75) -> 0 | AA74: 0 | AB74: 0 | AC74: 0 | AD74: 0 | AE74: 0 | AF74: 0 | AG74: 0 | AH74: 0 | AI74: 0 | AJ74: 0 | AK74: 0 | AL74: 0 | AN74: =SUM(AN75) -> 0 | AO74: =SUM(AO75) -> 0 | AP74: =SUM(AP75) -> 0 | AQ74: =SUM(AQ75) -> 0 | AR74: =SUM(AR75) -> 0
A75: 3 | B75: Rashodi poslovanja | C75: =SUM(C76,C80) -> 0 | D75: =SUM(D76,D80) -> 0 | E75: 0 | F75: 0 | G75: 0 | H75: 0 | I75: 0 | J75: 0 | L75: =SUM(L76,L80) -> 0 | M75: 0 | N75: 0 | O75: 0 | P75: 0 | Q75: 0 | R75: =SUM(R76,R80) -> 0 | S75: 0 | T75: 0 | U75: 0 | V75: 0 | W75: 0 | X75: 0 | Z75: =SUM(Z76,Z80) -> 0 | AA75: 0 | AB75: 0 | AC75: 0 | AD75: 0 | AE75: 0 | AF75: 0 | AG75: 0 | AH75: 0 | AI75: 0 | AJ75: 0 | AK75: 0 | AL75: 0 | AN75: =SUM(AN76,AN80) -> 0 | AO75: =SUM(AO76,AO80) -> 0 | AP75: =SUM(AP76,AP80) -> 0 | AQ75: =SUM(AQ76,AQ80) -> 0 | AR75: =SUM(AR76,AR80) -> 0
A76: 32 | B76: Materijalni rashodi | C76: =SUM(C77:C79) -> 0 | D76: =SUM(D77:D79) -> 0 | E76: 0 | F76: 0 | G76: 0 | H76: 0 | I76: 0 | J76: 0 | L76: =SUM(L77:L79) -> 0 | M76: =SUM(M77:M79) -> 0 | N76: =SUM(N77:N79) -> 0 | O76: =SUM(O77:O79) -> 0 | P76: =SUM(P77:P79) -> 0 | Q76: =SUM(R76:AD76) -> 0 | AE76: =SUM(AF76:AR76) -> 0
A77: 322 | B77: Rashodi za materijal i energiju | C77: =SUM(D77:P77) -> 0
A78: 323 | B78: Rashodi za usluge | C78: =SUM(D78:P78) -> 0
A79: 329 | B79: Ostali nespomenuti rashodi poslovanja | C79: =SUM(D79:P79) -> 0
A80: 37 | B80: Naknade građanima i kućanstvima na temelju osiguranja i druge naknade | C80: =SUM(C81) -> 0 | D80: =SUM(D81) -> 0 | E80: =SUM(E81) -> 0 | F80: 0 | G80: 0 | H80: 0 | I80: 0 | J80: 0 | L80: =SUM(L81) -> 0 | M80: =SUM(M81) -> 0 | N80: =SUM(N81) -> 0 | O80: =SUM(O81) -> 0 | P80: =SUM(P81) -> 0 | Q80: =SUM(R80:AD80) -> 0 | AE80: =SUM(AF80:AR80) -> 0
A81: 372 | B81: Ostale naknade građanima i kućanstvima iz proračuna | C81: =SUM(D81:P81) -> 0
B82: Nova aktivnost
A86: 4014 | B86: Program Projekti Europske Unije - društvene djelatnosti | C86: =SUM(C87,C140,C97,C126,C122,C149,C153,C178) -> 0 | D86: =SUM(D87,D140,D97,D126,D122,D149,D153,D178) -> 0 | E86: 0 | F86: 0 | G86: 0 | H86: 0 | I86: 0 | J86: 0 | L86: =SUM(L87,L140,L97,L126,L122,L149,L153,L178) -> 0 | M86: 0 | N86: 0 | O86: 0 | P86: 0 | Q86: 0 | R86: =SUM(R87,R140,R97,R126,R122,R149,R153,R178) -> 0 | S86: 0 | T86: 0 | U86: 0 | V86: 0 | W86: 0 | X86: 0 | Z86: =SUM(Z87,Z140,Z97,Z126,Z122,Z149,Z153,Z178) -> 0 | AA86: 0 | AB86: 0 | AC86: 0 | AD86: 0 | AE86: 0 | AF86: 0 | AG86: 0 | AH86: 0 | AI86: 0 | AJ86: 0 | AK86: 0 | AL86: 0 | AN86: =SUM(AN87,AN140,AN97,AN126,AN122,AN149,AN153,AN178) -> 0 | AO86: =SUM(AO87,AO140,AO97,AO126,AO122,AO149,AO153,AO178) -> 0 | AP86: =SUM(AP87,AP140,AP97,AP126,AP122,AP149,AP153,AP178) -> 0 | AQ86: =SUM(AQ87,AQ140,AQ97,AQ126,AQ122,AQ149,AQ153,AQ178) -> 0 | AR86: =SUM(AR87,AR140,AR97,AR126,AR122,AR149,AR153,AR178) -> 0
A87: K401401 | B87: Energetska obnova objekata u školstvu | C87: =SUM(C88,C91) -> 0 | D87: =SUM(D88,D91) -> 0 | E87: 0 | F87: 0 | G87: 0 | H87: 0 | I87: 0 | J87: 0 | L87: =SUM(L88,L91) -> 0 | M87: 0 | N87: 0 | O87: 0 | P87: 0 | Q87: 0 | R87: =SUM(R88,R91) -> 0 | S87: 0 | T87: 0 | U87: 0 | V87: 0 | W87: 0 | X87: 0 | Z87: =SUM(Z88,Z91) -> 0 | AA87: 0 | AB87: 0 | AC87: 0 | AD87: 0 | AE87: 0 | AF87: 0 | AG87: 0 | AH87: 0 | AI87: 0 | AJ87: 0 | AK87: 0 | AL87: 0 | AN87: =SUM(AN88,AN91) -> 0 | AO87: =SUM(AO88,AO91) -> 0 | AP87: =SUM(AP88,AP91) -> 0 | AQ87: =SUM(AQ88,AQ91) -> 0 | AR87: =SUM(AR88,AR91) -> 0
A88: 3 | B88: Rashodi poslovanja | C88: =SUM(C89) -> 0 | D88: =SUM(D89) -> 0 | E88: 0 | F88: 0 | G88: 0 | H88: 0 | I88: 0 | J88: 0 | L88: =SUM(L89) -> 0 | M88: 0 | N88: 0 | O88: 0 | P88: 0 | Q88: =SUM(Q89) -> 0 | R88: =SUM(R89) -> 0 | S88: 0 | T88: 0 | U88: 0 | V88: 0 | W88: 0 | X88: 0 | Z88: =SUM(Z89) -> 0 | AA88: 0 | AB88: 0 | AC88: 0 | AD88: 0 | AE88: 0 | AF88: 0 | AG88: 0 | AH88: 0 | AI88: 0 | AJ88: 0 | AK88: 0 | AL88: 0 | AN88: =SUM(AN89) -> 0 | AO88: =SUM(AO89) -> 0 | AP88: =SUM(AP89) -> 0 | AQ88: =SUM(AQ89) -> 0 | AR88: =SUM(AR89) -> 0
A89: 32 | B89: Materijalni rashodi | C89: =SUM(C90) -> 0 | D89: 0 | E89: 0 | F89: 0 | G89: 0 | H89: 0 | I89: 0 | J89: 0 | L89: 0 | M89: 0 | N89: 0 | O89: 0 | P89: 0 | Q89: =SUM(R89:AD89) -> 0 | AE89: =SUM(AF89:AR89) -> 0
A90: 323 | B90: Rashodi za usluge | C90: =SUM(D90:P90) -> 0
A91: 4 | B91: Rashodi za nabavu nefinancijske imovine | C91: =SUM(C92,C95) -> 0 | D91: =SUM(D92,D95) -> 0 | E91: 0 | F91: 0 | G91: 0 | H91: 0 | I91: 0 | J91: 0 | L91: =SUM(L92,L95) -> 0 | M91: 0 | N91: 0 | O91: 0 | P91: 0 | Q91: 0 | R91: =SUM(R92,R95) -> 0 | S91: 0 | T91: 0 | U91: 0 | V91: 0 | W91: 0 | X91: 0 | Z91: =SUM(Z92,Z95) -> 0 | AA91: 0 | AB91: 0 | AC91: 0 | AD91: 0 | AE91: 0 | AF91: 0 | AG91: 0 | AH91: 0 | AI91: 0 | AJ91: 0 | AK91: 0 | AL91: 0 | AN91: =SUM(AN92,AN95) -> 0 | AO91: =SUM(AO92,AO95) -> 0 | AP91: =SUM(AP92,AP95) -> 0 | AQ91: =SUM(AQ92,AQ95) -> 0 | AR91: =SUM(AR92,AR95) -> 0
A92: 42 | B92: Rashodi za nabavu proizvedene dugotrajne imovine | C92: =SUM(C93:C94) -> 0 | D92: =SUM(D93:D94) -> 0 | E92: 0 | F92: 0 | G92: 0 | H92: 0 | I92: 0 | J92: 0 | L92: =SUM(L93:L94) -> 0 | M92: =SUM(M93:M94) -> 0 | N92: =SUM(N93:N94) -> 0 | O92: =SUM(O93:O94) -> 0 | P92: =SUM(P93:P94) -> 0 | Q92: =SUM(R92:AD92) -> 0 | AE92: =SUM(AF92:AR92) -> 0
A93: 422 | B93: Postrojenja i oprema | C93: =SUM(D93:P93) -> 0
A94: 426 | B94: Nematerijalna proizvedena imovina | C94: =SUM(D94:P94) -> 0
A95: 45 | B95: Rashodi za dodatna ulaganja na nefinancijskoj imovini | C95: =SUM(C96) -> 0 | D95: =SUM(D96) -> 0 | E95: 0 | F95: 0 | G95: 0 | H95: 0 | I95: 0 | J95: 0 | L95: =SUM(L96) -> 0 | M95: =SUM(M96) -> 0 | N95: =SUM(N96) -> 0 | O95: =SUM(O96) -> 0 | P95: =SUM(P96) -> 0 | Q95: =SUM(R95:AD95) -> 0 | AE95: =SUM(AF95:AR95) -> 0
A96: 451 | B96: Dodatna ulaganja na građevinskim objektima | C96: =SUM(D96:P96) -> 0
A97: K401403 | B97: Podrška osnivanju i radu centara izvrsnosti u SDŽ | C97: =SUM(C98,C111) -> 0 | D97: =SUM(D98,D111) -> 0 | E97: 0 | F97: 0 | G97: 0 | H97: 0 | I97: 0 | J97: 0 | L97: =SUM(L98,L111) -> 0 | M97: 0 | N97: 0 | O97: 0 | P97: 0 | Q97: 0 | R97: =SUM(R98,R111) -> 0 | S97: 0 | T97: 0 | U97: 0 | V97: 0 | W97: 0 | X97: 0 | Z97: =SUM(Z98,Z111) -> 0 | AA97: 0 | AB97: 0 | AC97: 0 | AD97: 0 | AE97: 0 | AF97: 0 | AG97: 0 | AH97: 0 | AI97: 0 | AJ97: 0 | AK97: 0 | AL97: 0 | AN97: =SUM(AN98,AN111) -> 0 | AO97: =SUM(AO98,AO111) -> 0 | AP97: =SUM(AP98,AP111) -> 0 | AQ97: =SUM(AQ98,AQ111) -> 0 | AR97: =SUM(AR98,AR111) -> 0
A98: 3 | B98: Rashodi poslovanja | C98: =SUM(C99,C103,C109) -> 0 | D98: =SUM(D99,D103,D109) -> 0 | E98: 0 | F98: 0 | G98: 0 | H98: 0 | I98: 0 | J98: 0 | L98: =SUM(L99,L103,L109) -> 0 | M98: 0 | N98: 0 | O98: 0 | P98: 0 | Q98: 0 | R98: =SUM(R99,R103,R109) -> 0 | S98: 0 | T98: 0 | U98: 0 | V98: 0 | W98: 0 | X98: 0 | Z98: =SUM(Z99,Z103,Z109) -> 0 | AA98: 0 | AB98: 0 | AC98: 0 | AD98: 0 | AE98: 0 | AF98: 0 | AG98: 0 | AH98: 0 | AI98: 0 | AJ98: 0 | AK98: 0 | AL98: 0 | AN98: =SUM(AN99,AN103,AN109) -> 0 | AO98: =SUM(AO99,AO103,AO109) -> 0 | AP98: =SUM(AP99,AP103,AP109) -> 0 | AQ98: =SUM(AQ99,AQ103,AQ109) -> 0 | AR98: =SUM(AR99,AR103,AR109) -> 0
A99: 31 | B99: Rashodi za zaposlene | C99: =SUM(C100:C102) -> 0 | D99: =SUM(D100:D102) -> 0 | E99: 0 | F99: 0 | G99: 0 | H99: 0 | I99: 0 | J99: 0 | L99: =SUM(L100:L102) -> 0 | M99: =SUM(M100:M102) -> 0 | N99: =SUM(N100:N102) -> 0 | O99: =SUM(O100:O102) -> 0 | P99: =SUM(P100:P102) -> 0 | Q99: =SUM(R99:AD99) -> 0 | AE99: =SUM(AF99:AR99) -> 0
A100: 311 | B100: Plaće (Bruto) | C100: =SUM(D100:P100) -> 0
A101: 312 | B101: Ostali rashodi za zaposlene | C101: =SUM(D101:P101) -> 0
A102: 313 | B102: Doprinosi na plaće | C102: =SUM(D102:P102) -> 0
A103: 32 | B103: Materijalni rashodi | C103: =SUM(C104:C108) -> 0 | D103: =SUM(D104:D108) -> 0 | E103: 0 | F103: 0 | G103: 0 | H103: 0 | I103: 0 | J103: 0 | L103: =SUM(L104:L108) -> 0 | M103: =SUM(M104:M108) -> 0 | N103: =SUM(N104:N108) -> 0 | O103: =SUM(O104:O108) -> 0 | P103: =SUM(P104:P108) -> 0 | Q103: =SUM(R103:AD103) -> 0 | AE103: =SUM(AF103:AR103) -> 0
A104: 321 | B104: Naknade troškova zaposlenima | C104: =SUM(D104:P104) -> 0
A105: 322 | B105: Rashodi za materijal i energiju | C105: =SUM(D105:P105) -> 0
A106: 323 | B106: Rashodi za usluge | C106: =SUM(D106:P106) -> 0
A107: 324 | B107: Naknade troškova osobama izvan radnog odnosa | C107: =SUM(D107:P107) -> 0
A108: 329 | B108: Ostali nespomenuti rashodi poslovanja | C108: =SUM(D108:P108) -> 0
A109: 34 | B109: Financijski rashodi | C109: =SUM(C110) -> 0 | D109: =SUM(D110) -> 0 | E109: 0 | F109: 0 | G109: 0 | H109: 0 | I109: 0 | J109: 0 | L109: =SUM(L110) -> 0 | M109: =SUM(M110) -> 0 | N109: =SUM(N110) -> 0 | O109: =SUM(O110) -> 0 | P109: =SUM(P110) -> 0 | Q109: =SUM(R109:AD109) -> 0 | AE109: =SUM(AF109:AR109) -> 0
A110: 343 | B110: Ostali financijski rashodi | C110: =SUM(D110:P110) -> 0
A111: 4 | B111: Rashodi za nabavu nefinancijske imovine | C111: =SUM(C112,C117) -> 0 | D111: =SUM(D112,D117) -> 0 | E111: 0 | F111: 0 | G111: 0 | H111: 0 | I111: 0 | J111: 0 | L111: =SUM(L112,L117) -> 0 | M111: 0 | N111: 0 | O111: 0 | P111: 0 | Q111: 0 | R111: =SUM(R112,R117) -> 0 | S111: 0 | T111: 0 | U111: 0 | V111: 0 | W111: 0 | X111: 0 | Z111: =SUM(Z112,Z117) -> 0 | AA111: 0 | AB111: 0 | AC111: 0 | AD111: 0 | AE111: 0 | AF111: 0 | AG111: 0 | AH111: 0 | AI111: 0 | AJ111: 0 | AK111: 0 | AL111: 0 | AN111: =SUM(AN112,AN117) -> 0 | AO111: =SUM(AO112,AO117) -> 0 | AP111: =SUM(AP112,AP117) -> 0 | AQ111: =SUM(AQ112,AQ117) -> 0 | AR111: =SUM(AR112,AR117) -> 0
A112: 42 | B112: Rashodi za nabavu proizvedene dugotrajne imovine | C112: =SUM(C113:C116) -> 0 | D112: =SUM(D113:D116) -> 0 | E112: 0 | F112: 0 | G112: 0 | H112: 0 | I112: 0 | J112: 0 | L112: =SUM(L113:L116) -> 0 | M112: =SUM(M113:M116) -> 0 | N112: =SUM(N113:N116) -> 0 | O112: =SUM(O113:O116) -> 0 | P112: =SUM(P113:P116) -> 0 | Q112: =SUM(R112:AD112) -> 0 | AE112: =SUM(AF112:AR112) -> 0
A113: 421 | B113: Građevinski objekti | C113: =SUM(D113:P113) -> 0
A114: 422 | B114: Postrojenja i oprema | C114: =SUM(D114:P114) -> 0
A115: 423 | B115: Prijevozna sredstva | C115: =SUM(D115:P115) -> 0
A116: 424 | B116: Knjige, umjetnička djela i ostale izložbene vrijednosti | C116: =SUM(D116:P116) -> 0
A117: 45 | B117: Rashodi za dodatna ulaganja na nefinancijskoj imovini | C117: =SUM(C118:C121) -> 0 | D117: =SUM(D118:D121) -> 0 | E117: 0 | F117: 0 | G117: 0 | H117: 0 | I117: 0 | J117: 0 | L117: =SUM(L118:L121) -> 0 | M117: =SUM(M118:M121) -> 0 | N117: =SUM(N118:N121) -> 0 | O117: =SUM(O118:O121) -> 0 | P117: =SUM(P118:P121) -> 0 | Q117: =SUM(R117:AD117) -> 0 | AE117: =SUM(AF117:AR117) -> 0
A118: 451 | B118: Dodatna ulaganja na građevinskim objektima | C118: =SUM(D118:P118) -> 0
A119: 452 | B119: Dodatna ulaganja na postrojenjima i opremi | C119: =SUM(D119:P119) -> 0
A120: 453 | B120: Dodatna ulaganja na prijevoznim sredstvima | C120: =SUM(D120:P120) -> 0
A121: 454 | B121: Dodatna ulaganja za ostalu nefinancijsku imovinu | C121: =SUM(D121:P121) -> 0
A122: K401404 | B122: e-Škole | C122: =SUM(C123) -> 0 | D122: =SUM(D123) -> 0 | E122: 0 | F122: 0 | G122: 0 | H122: 0 | I122: 0 | J122: 0 | L122: =SUM(L123) -> 0 | M122: 0 | N122: 0 | O122: 0 | P122: 0 | Q122: =SUM(Q123) -> 0 | R122: =SUM(R123) -> 0 | S122: 0 | T122: 0 | U122: 0 | V122: 0 | W122: 0 | X122: 0 | Z122: =SUM(Z123) -> 0 | AA122: 0 | AB122: 0 | AC122: 0 | AD122: 0 | AE122: =SUM(AE123) -> 0 | AF122: 0 | AG122: 0 | AH122: 0 | AI122: 0 | AJ122: 0 | AK122: 0 | AL122: 0 | AN122: =SUM(AN123) -> 0 | AO122: 0 | AP122: 0 | AQ122: 0 | AR122: 0
A123: 3 | B123: Rashodi poslovanja | C123: =SUM(C124) -> 0 | D123: 0 | E123: 0 | F123: 0 | G123: 0 | H123: 0 | I123: 0 | J123: 0 | L123: 0 | M123: 0 | N123: 0 | O123: 0 | P123: 0 | Q123: =SUM(Q124) -> 0 | R123: 0 | S123: 0 | T123: 0 | U123: 0 | V123: 0 | W123: 0 | X123: 0 | Z123: 0 | AA123: 0 | AB123: 0 | AC123: 0 | AD123: 0 | AE123: 0 | AF123: 0 | AG123: 0 | AH123: 0 | AI123: 0 | AJ123: 0 | AK123: 0 | AL123: 0 | AN123: 0 | AO123: 0 | AP123: 0 | AQ123: 0 | AR123: 0
A124: 32 | B124: Materijalni rashodi | C124: =SUM(C125:C125) -> 0 | D124: =SUM(D125:D125) -> 0 | E124: 0 | F124: 0 | G124: 0 | H124: 0 | I124: 0 | J124: 0 | L124: =SUM(L125:L125) -> 0 | M124: =SUM(M125:M125) -> 0 | N124: =SUM(N125:N125) -> 0 | O124: =SUM(O125:O125) -> 0 | P124: =SUM(P125:P125) -> 0 | Q124: =SUM(R124:AD124) -> 0 | AE124: =SUM(AF124:AR124) -> 0
A125: 323 | B125: Rashodi za usluge | C125: =SUM(D125:P125) -> 0
A126: T401401 | B126: Erasmus+ | C126: =SUM(C127) -> 0 | D126: =SUM(D127) -> 0 | E126: 0 | F126: 0 | G126: 0 | H126: 0 | I126: 0 | J126: 0 | L126: =SUM(L127) -> 0 | M126: 0 | N126: 0 | O126: 0 | P126: 0 | Q126: 0 | R126: =SUM(R127) -> 0 | S126: 0 | T126: 0 | U126: 0 | V126: 0 | W126: 0 | X126: 0 | Z126: =SUM(Z127) -> 0 | AA126: 0 | AB126: 0 | AC126: 0 | AD126: 0 | AE126: 0 | AF126: 0 | AG126: 0 | AH126: 0 | AI126: 0 | AJ126: 0 | AK126: 0 | AL126: 0 | AN126: =SUM(AN127) -> 0 | AO126: =SUM(AO127) -> 0 | AP126: =SUM(AP127) -> 0 | AQ126: =SUM(AQ127) -> 0 | AR126: =SUM(AR127) -> 0
A127: 3 | B127: Rashodi poslovanja | C127: =SUM(C128,C132,C138) -> 0 | D127: =SUM(D128,D132,D138) -> 0 | E127: 0 | F127: 0 | G127: 0 | H127: 0 | I127: 0 | J127: 0 | L127: =SUM(L128,L132,L138) -> 0 | M127: 0 | N127: 0 | O127: 0 | P127: 0 | Q127: 0 | R127: =SUM(R128,R132,R138) -> 0 | S127: 0 | T127: 0 | U127: 0 | V127: 0 | W127: 0 | X127: 0 | Z127: =SUM(Z128,Z132,Z138) -> 0 | AA127: 0 | AB127: 0 | AC127: 0 | AD127: 0 | AE127: 0 | AF127: 0 | AG127: 0 | AH127: 0 | AI127: 0 | AJ127: 0 | AK127: 0 | AL127: 0 | AN127: =SUM(AN128,AN132,AN138) -> 0 | AO127: =SUM(AO128,AO132,AO138) -> 0 | AP127: =SUM(AP128,AP132,AP138) -> 0 | AQ127: =SUM(AQ128,AQ132,AQ138) -> 0 | AR127: =SUM(AR128,AR132,AR138) -> 0
A128: 31 | B128: Rashodi za zaposlene | C128: =SUM(C129:C131) -> 0 | D128: =SUM(D129:D131) -> 0 | E128: 0 | F128: 0 | G128: 0 | H128: 0 | I128: 0 | J128: 0 | L128: =SUM(L129:L131) -> 0 | M128: =SUM(M129:M131) -> 0 | N128: =SUM(N129:N131) -> 0 | O128: =SUM(O129:O131) -> 0 | P128: =SUM(P129:P131) -> 0 | Q128: =SUM(R128:AD128) -> 0 | AE128: =SUM(AF128:AR128) -> 0
A129: 311 | B129: Plaće (Bruto) | C129: =SUM(D129:P129) -> 0
A130: 312 | B130: Ostali rashodi za zaposlene | C130: =SUM(D130:P130) -> 0
A131: 313 | B131: Doprinosi na plaće | C131: =SUM(D131:P131) -> 0
A132: 32 | B132: Materijalni rashodi | C132: =SUM(C133:C137) -> 0 | D132: =SUM(D133:D137) -> 0 | E132: 0 | F132: 0 | G132: 0 | H132: 0 | I132: 0 | J132: 0 | L132: =SUM(L133:L137) -> 0 | M132: =SUM(M133:M137) -> 0 | N132: =SUM(N133:N137) -> 0 | O132: =SUM(O133:O137) -> 0 | P132: =SUM(P133:P137) -> 0 | Q132: =SUM(R132:AD132) -> 0 | AE132: =SUM(AF132:AR132) -> 0
A133: 321 | B133: Naknade troškova zaposlenima | C133: =SUM(D133:P133) -> 0
A134: 322 | B134: Rashodi za materijal i energiju | C134: =SUM(D134:P134) -> 0
A135: 323 | B135: Rashodi za usluge | C135: =SUM(D135:P135) -> 0
A136: 324 | B136: Naknade troškova osobama izvan radnog odnosa | C136: =SUM(D136:P136) -> 0
A137: 329 | B137: Ostali nespomenuti rashodi poslovanja | C137: =SUM(D137:P137) -> 0
A138: 34 | B138: Financijski rashodi | C138: =SUM(C139) -> 0 | D138: =SUM(D139) -> 0 | E138: 0 | F138: 0 | G138: 0 | H138: 0 | I138: 0 | J138: 0 | L138: =SUM(L139) -> 0 | M138: =SUM(M139) -> 0 | N138: =SUM(N139) -> 0 | O138: =SUM(O139) -> 0 | P138: =SUM(P139) -> 0 | Q138: =SUM(R138:AD138) -> 0 | AE138: =SUM(AF138:AR138) -> 0
A139: 343 | B139: Ostali financijski rashodi | C139: =SUM(D139:P139) -> 0
A140: T401404 | B140: Učimo zajedno III-II | C140: =SUM(C141) -> 0 | D140: =SUM(D141) -> 0 | E140: 0 | F140: 0 | G140: 0 | H140: 0 | I140: 0 | J140: 0 | L140: =SUM(L141) -> 0 | M140: 0 | N140: 0 | O140: 0 | P140: 0 | Q140: 0 | R140: =SUM(R141) -> 0 | S140: 0 | T140: 0 | U140: 0 | V140: 0 | W140: 0 | X140: 0 | Z140: =SUM(Z141) -> 0 | AA140: 0 | AB140: 0 | AC140: 0 | AD140: 0 | AE140: 0 | AF140: 0 | AG140: 0 | AH140: 0 | AI140: 0 | AJ140: 0 | AK140: 0 | AL140: 0 | AN140: =SUM(AN141) -> 0 | AO140: =SUM(AO141) -> 0 | AP140: =SUM(AP141) -> 0 | AQ140: =SUM(AQ141) -> 0 | AR140: =SUM(AR141) -> 0
A141: 3 | B141: Rashodi poslovanja | C141: =SUM(C142,C146) -> 0 | D141: =SUM(D142,D146) -> 0 | E141: 0 | F141: 0 | G141: 0 | H141: 0 | I141: 0 | J141: 0 | L141: =SUM(L142,L146) -> 0 | M141: 0 | N141: 0 | O141: 0 | P141: 0 | Q141: 0 | R141: =SUM(R142,R146) -> 0 | S141: 0 | T141: 0 | U141: 0 | V141: 0 | W141: 0 | X141: 0 | Z141: =SUM(Z142,Z146) -> 0 | AA141: 0 | AB141: 0 | AC141: 0 | AD141: 0 | AE141: 0 | AF141: 0 | AG141: 0 | AH141: 0 | AI141: 0 | AJ141: 0 | AK141: 0 | AL141: 0 | AN141: =SUM(AN142,AN146) -> 0 | AO141: =SUM(AO142,AO146) -> 0 | AP141: =SUM(AP142,AP146) -> 0 | AQ141: =SUM(AQ142,AQ146) -> 0 | AR141: =SUM(AR142,AR146) -> 0
A142: 31 | B142: Rashodi za zaposlene | C142: =SUM(C143:C145) -> 0 | D142: =SUM(D143:D145) -> 0 | E142: 0 | F142: 0 | G142: 0 | H142: 0 | I142: 0 | J142: 0 | L142: =SUM(L143:L145) -> 0 | M142: =SUM(M143:M145) -> 0 | N142: =SUM(N143:N145) -> 0 | O142: =SUM(O143:O145) -> 0 | P142: =SUM(P143:P145) -> 0 | Q142: =SUM(R142:AD142) -> 0 | AE142: =SUM(AF142:AR142) -> 0
A143: 311 | B143: Plaće (Bruto) | C143: =SUM(D143:P143) -> 0
A144: 312 | B144: Ostali rashodi za zaposlene | C144: =SUM(D144:P144) -> 0
A145: 313 | B145: Doprinosi na plaće | C145: =SUM(D145:P145) -> 0
A146: 32 | B146: Materijalni rashodi | C146: =SUM(C147:C148) -> 0 | D146: =SUM(D147:D148) -> 0 | E146: 0 | F146: 0 | G146: 0 | H146: 0 | I146: 0 | J146: 0 | L146: =SUM(L147:L148) -> 0 | M146: =SUM(M147:M148) -> 0 | N146: =SUM(N147:N148) -> 0 | O146: =SUM(O147:O148) -> 0 | P146: =SUM(P147:P148) -> 0 | Q146: =SUM(R146:AD146) -> 0 | AE146: =SUM(AF146:AR146) -> 0
A147: 321 | B147: Naknade troškova zaposlenima | C147: =SUM(D147:P147) -> 0
A148: 323 | B148: Rashodi za usluge | C148: =SUM(D148:P148) -> 0
A149: T401415 | B149: Školska shema - voće | C149: =SUM(C150) -> 0 | D149: =SUM(D150) -> 0 | E149: 0 | F149: 0 | G149: 0 | H149: 0 | I149: 0 | J149: 0 | L149: =SUM(L150) -> 0 | M149: 0 | N149: 0 | O149: 0 | P149: =SUM(P150) -> 0 | Q149: =SUM(Q150) -> 0 | R149: =SUM(R150) -> 0 | S149: 0 | T149: 0 | U149: 0 | V149: 0 | W149: 0 | X149: 0 | Z149: =SUM(Z150) -> 0 | AA149: 0 | AB149: 0 | AC149: 0 | AD149: 0 | AE149: =SUM(AE150) -> 0 | AF149: 0 | AG149: 0 | AH149: 0 | AI149: 0 | AJ149: 0 | AK149: 0 | AL149: 0 | AN149: =SUM(AN150) -> 0 | AO149: 0 | AP149: 0 | AQ149: 0 | AR149: 0
A150: 3 | B150: Rashodi poslovanja | C150: =SUM(C151) -> 0 | D150: 0 | E150: 0 | F150: 0 | G150: 0 | H150: 0 | I150: 0 | J150: 0 | L150: 0 | M150: 0 | N150: 0 | O150: 0 | P150: =SUM(P151) -> 0 | Q150: =SUM(Q151) -> 0 | R150: 0 | S150: 0 | T150: 0 | U150: 0 | V150: 0 | W150: 0 | X150: 0 | Z150: 0 | AA150: 0 | AB150: 0 | AC150: 0 | AD150: 0 | AE150: 0 | AF150: 0 | AG150: 0 | AH150: 0 | AI150: 0 | AJ150: 0 | AK150: 0 | AL150: 0 | AN150: 0 | AO150: 0 | AP150: 0 | AQ150: 0 | AR150: 0
A151: 32 | B151: Materijalni rashodi | C151: =SUM(C152:C152) -> 0 | D151: =SUM(D152:D152) -> 0 | E151: 0 | F151: 0 | G151: 0 | H151: 0 | I151: 0 | J151: 0 | L151: =SUM(L152:L152) -> 0 | M151: =SUM(M152:M152) -> 0 | N151: =SUM(N152:N152) -> 0 | O151: =SUM(O152:O152) -> 0 | P151: =SUM(P152:P152) -> 0 | Q151: =SUM(R151:AD151) -> 0 | AE151: =SUM(AF151:AR151) -> 0
A152: 322 | B152: Rashodi za materijal i energiju | C152: =SUM(D152:P152) -> 0
B153: Novi EU projekt | C153: =SUM(C154,C167) -> 0 | D153: 0 | E153: 0 | F153: 0 | G153: 0 | H153: 0 | I153: 0 | J153: 0 | L153: =SUM(L154,L167) -> 0 | M153: 0 | N153: 0 | O153: 0 | P153: 0 | Q153: 0 | R153: 0 | S153: 0 | T153: 0 | U153: 0 | V153: 0 | W153: 0 | X153: 0 | Z153: =SUM(Z154,Z167) -> 0 | AA153: 0 | AB153: 0 | AC153: 0 | AD153: 0 | AE153: 0 | AF153: 0 | AG153: 0 | AH153: 0 | AI153: 0 | AJ153: 0 | AK153: 0 | AL153: 0 | AN153: =SUM(AN154,AN167) -> 0 | AO153: =SUM(AO154,AO167) -> 0 | AP153: =SUM(AP154,AP167) -> 0 | AQ153: =SUM(AQ154,AQ167) -> 0 | AR153: =SUM(AR154,AR167) -> 0
A154: 3 | B154: Rashodi poslovanja | C154: =SUM(C155,C159,C165) -> 0 | D154: 0 | E154: 0 | F154: 0 | G154: 0 | H154: 0 | I154: 0 | J154: 0 | L154: =SUM(L155,L159,L165) -> 0 | M154: 0 | N154: 0 | O154: 0 | P154: 0 | Q154: 0 | R154: 0 | S154: 0 | T154: 0 | U154: 0 | V154: 0 | W154: 0 | X154: 0 | Z154: =SUM(Z155,Z159,Z165) -> 0 | AA154: 0 | AB154: 0 | AC154: 0 | AD154: 0 | AE154: 0 | AF154: 0 | AG154: 0 | AH154: 0 | AI154: 0 | AJ154: 0 | AK154: 0 | AL154: 0 | AN154: =SUM(AN155,AN159,AN165) -> 0 | AO154: =SUM(AO155,AO159,AO165) -> 0 | AP154: =SUM(AP155,AP159,AP165) -> 0 | AQ154: =SUM(AQ155,AQ159,AQ165) -> 0 | AR154: =SUM(AR155,AR159,AR165) -> 0
A155: 31 | B155: Rashodi za zaposlene | C155: =SUM(C156,C157,C158) -> 0 | D155: 0 | E155: 0 | F155: 0 | G155: 0 | H155: 0 | I155: 0 | J155: 0 | L155: =SUM(L156,L157,L158) -> 0 | M155: =SUM(M156,M157,M158) -> 0 | N155: =SUM(N156,N157,N158) -> 0 | O155: =SUM(O156,O157,O158) -> 0 | P155: =SUM(P156,P157,P158) -> 0 | Q155: =SUM(R155:AD155) -> 0 | AE155: =SUM(AF155:AR155) -> 0
A156: 311 | B156: Plaće (Bruto) | C156: =SUM(D156:P156) -> 0
A157: 312 | B157: Ostali rashodi za zaposlene | C157: =SUM(D157:P157) -> 0
A158: 313 | B158: Doprinosi na plaće | C158: =SUM(D158:P158) -> 0
A159: 32 | B159: Materijalni rashodi | C159: =SUM(C160:C164) -> 0 | D159: 0 | E159: 0 | F159: 0 | G159: 0 | H159: 0 | I159: 0 | J159: 0 | L159: =SUM(L160:L164) -> 0 | M159: =SUM(M160:M164) -> 0 | N159: =SUM(N160:N164) -> 0 | O159: =SUM(O160:O164) -> 0 | P159: =SUM(P160:P164) -> 0 | Q159: =SUM(R159:AD159) -> 0 | AE159: =SUM(AF159:AR159) -> 0
A160: 321 | B160: Naknade troškova zaposlenima | C160: =SUM(D160:P160) -> 0
A161: 322 | B161: Rashodi za materijal i energiju | C161: =SUM(D161:P161) -> 0
A162: 323 | B162: Rashodi za usluge | C162: =SUM(D162:P162) -> 0
A163: 324 | B163: Naknade troškova osobama izvan radnog odnosa | C163: =SUM(D163:P163) -> 0
A164: 329 | B164: Ostali nespomenuti rashodi poslovanja | C164: =SUM(D164:P164) -> 0
A165: 34 | B165: Financijski rashodi | C165: =SUM(C166) -> 0 | D165: 0 | E165: 0 | F165: 0 | G165: 0 | H165: 0 | I165: 0 | J165: 0 | L165: =SUM(L166) -> 0 | M165: =SUM(M166) -> 0 | N165: =SUM(N166) -> 0 | O165: =SUM(O166) -> 0 | P165: =SUM(P166) -> 0 | Q165: =SUM(R165:AD165) -> 0 | AE165: =SUM(AF165:AR165) -> 0
A166: 343 | B166: Ostali financijski rashodi | C166: =SUM(D166:P166) -> 0
A167: 4 | B167: Rashodi za nabavu nefinancijske imovine | C167: =SUM(C168,C173) -> 0 | D167: 0 | E167: 0 | F167: 0 | G167: 0 | H167: 0 | I167: 0 | J167: 0 | L167: =SUM(L168,L173) -> 0 | M167: 0 | N167: 0 | O167: 0 | P167: 0 | Q167: 0 | R167: 0 | S167: 0 | T167: 0 | U167: 0 | V167: 0 | W167: 0 | X167: 0 | Z167: =SUM(Z168,Z173) -> 0 | AA167: 0 | AB167: 0 | AC167: 0 | AD167: 0 | AE167: 0 | AF167: 0 | AG167: 0 | AH167: 0 | AI167: 0 | AJ167: 0 | AK167: 0 | AL167: 0 | AN167: =SUM(AN168,AN173) -> 0 | AO167: =SUM(AO168,AO173) -> 0 | AP167: =SUM(AP168,AP173) -> 0 | AQ167: =SUM(AQ168,AQ173) -> 0 | AR167: =SUM(AR168,AR173) -> 0
A168: 42 | B168: Rashodi za nabavu proizvedene dugotrajne imovine | C168: =SUM(C169:C172) -> 0 | D168: 0 | E168: 0 | F168: 0 | G168: 0 | H168: 0 | I168: 0 | J168: 0 | L168: =SUM(L169:L172) -> 0 | M168: =SUM(M169:M172) -> 0 | N168: =SUM(N169:N172) -> 0 | O168: =SUM(O169:O172) -> 0 | P168: =SUM(P169:P172) -> 0 | Q168: =SUM(R168:AD168) -> 0 | AE168: =SUM(AF168:AR168) -> 0
A169: 421 | B169: Građevinski objekti | C169: =SUM(D169:P169) -> 0
A170: 422 | B170: Postrojenja i oprema | C170: =SUM(D170:P170) -> 0
A171: 423 | B171: Prijevozna sredstva | C171: =SUM(D171:P171) -> 0
A172: 424 | B172: Knjige, umjetnička djela i ostale izložbene vrijednosti | C172: =SUM(D172:P172) -> 0
A173: 45 | B173: Rashodi za dodatna ulaganja na nefinancijskoj imovini | C173: =SUM(C174:C177) -> 0 | D173: 0 | E173: 0 | F173: 0 | G173: 0 | H173: 0 | I173: 0 | J173: 0 | L173: =SUM(L174:L177) -> 0 | M173: =SUM(M174:M177) -> 0 | N173: =SUM(N174:N177) -> 0 | O173: =SUM(O174:O177) -> 0 | P173: =SUM(P174:P177) -> 0 | Q173: =SUM(R173:AD173) -> 0 | AE173: =SUM(AF173:AR173) -> 0
A174: 451 | B174: Dodatna ulaganja na građevinskim objektima | C174: =SUM(D174:P174) -> 0
A175: 452 | B175: Dodatna ulaganja na postrojenjima i opremi | C175: =SUM(D175:P175) -> 0
A176: 453 | B176: Dodatna ulaganja na prijevoznim sredstvima | C176: =SUM(D176:P176) -> 0
A177: 454 | B177: Dodatna ulaganja za ostalu nefinancijsku imovinu | C177: =SUM(D177:P177) -> 0
B178: Novi EU projekt | C178: =SUM(C179,C192) -> 0 | D178: =SUM(D179,D192) -> 0 | E178: 0 | F178: 0 | G178: 0 | H178: 0 | I178: 0 | J178: 0 | L178: =SUM(L179,L192) -> 0 | M178: 0 | N178: 0 | O178: 0 | P178: 0 | Q178: 0 | R178: =SUM(R179,R192) -> 0 | S178: 0 | T178: 0 | U178: 0 | V178: 0 | W178: 0 | X178: 0 | Z178: =SUM(Z179,Z192) -> 0 | AA178: 0 | AB178: 0 | AC178: 0 | AD178: 0 | AE178: 0 | AF178: 0 | AG178: 0 | AH178: 0 | AI178: 0 | AJ178: 0 | AK178: 0 | AL178: 0 | AN178: =SUM(AN179,AN192) -> 0 | AO178: =SUM(AO179,AO192) -> 0 | AP178: =SUM(AP179,AP192) -> 0 | AQ178: =SUM(AQ179,AQ192) -> 0 | AR178: =SUM(AR179,AR192) -> 0
A179: 3 | B179: Rashodi poslovanja | C179: =SUM(C180,C184,C190) -> 0 | D179: =SUM(D180,D184,D190) -> 0 | E179: 0 | F179: 0 | G179: 0 | H179: 0 | I179: 0 | J179: 0 | L179: =SUM(L180,L184,L190) -> 0 | M179: 0 | N179: 0 | O179: 0 | P179: 0 | Q179: 0 | R179: =SUM(R180,R184,R190) -> 0 | S179: 0 | T179: 0 | U179: 0 | V179: 0 | W179: 0 | X179: 0 | Z179: =SUM(Z180,Z184,Z190) -> 0 | AA179: 0 | AB179: 0 | AC179: 0 | AD179: 0 | AE179: 0 | AF179: 0 | AG179: 0 | AH179: 0 | AI179: 0 | AJ179: 0 | AK179: 0 | AL179: 0 | AN179: =SUM(AN180,AN184,AN190) -> 0 | AO179: =SUM(AO180,AO184,AO190) -> 0 | AP179: =SUM(AP180,AP184,AP190) -> 0 | AQ179: =SUM(AQ180,AQ184,AQ190) -> 0 | AR179: =SUM(AR180,AR184,AR190) -> 0
A180: 31 | B180: Rashodi za zaposlene | C180: =SUM(C181,C182,C183) -> 0 | D180: =SUM(D181,D182,D183) -> 0 | E180: 0 | F180: 0 | G180: 0 | H180: 0 | I180: 0 | J180: 0 | L180: =SUM(L181,L182,L183) -> 0 | M180: =SUM(M181,M182,M183) -> 0 | N180: =SUM(N181,N182,N183) -> 0 | O180: =SUM(O181,O182,O183) -> 0 | P180: =SUM(P181,P182,P183) -> 0 | Q180: =SUM(R180:AD180) -> 0 | AE180: =SUM(AF180:AR180) -> 0
A181: 311 | B181: Plaće (Bruto) | C181: =SUM(D181:P181) -> 0
A182: 312 | B182: Ostali rashodi za zaposlene | C182: =SUM(D182:P182) -> 0
A183: 313 | B183: Doprinosi na plaće | C183: =SUM(D183:P183) -> 0
A184: 32 | B184: Materijalni rashodi | C184: =SUM(C185:C189) -> 0 | D184: =SUM(D185:D189) -> 0 | E184: 0 | F184: 0 | G184: 0 | H184: 0 | I184: 0 | J184: 0 | L184: =SUM(L185:L189) -> 0 | M184: =SUM(M185:M189) -> 0 | N184: =SUM(N185:N189) -> 0 | O184: =SUM(O185:O189) -> 0 | P184: =SUM(P185:P189) -> 0 | Q184: =SUM(R184:AD184) -> 0 | AE184: =SUM(AF184:AR184) -> 0
A185: 321 | B185: Naknade troškova zaposlenima | C185: =SUM(D185:P185) -> 0
A186: 322 | B186: Rashodi za materijal i energiju | C186: =SUM(D186:P186) -> 0
A187: 323 | B187: Rashodi za usluge | C187: =SUM(D187:P187) -> 0
A188: 324 | B188: Naknade troškova osobama izvan radnog odnosa | C188: =SUM(D188:P188) -> 0
A189: 329 | B189: Ostali nespomenuti rashodi poslovanja | C189: =SUM(D189:P189) -> 0
A190: 34 | B190: Financijski rashodi | C190: =SUM(C191) -> 0 | D190: =SUM(D191) -> 0 | E190: =SUM(E191) -> 0 | F190: 0 | G190: 0 | H190: 0 | I190: 0 | J190: 0 | L190: =SUM(L191) -> 0 | M190: =SUM(M191) -> 0 | N190: =SUM(N191) -> 0 | O190: =SUM(O191) -> 0 | P190: =SUM(P191) -> 0 | Q190: =SUM(R190:AD190) -> 0 | AE190: =SUM(AF190:AR190) -> 0
A191: 343 | B191: Ostali financijski rashodi | C191: =SUM(D191:P191) -> 0
A192: 4 | B192: Rashodi za nabavu nefinancijske imovine | C192: =SUM(C193,C198) -> 0 | D192: =SUM(D193,D198) -> 0 | E192: =SUM(E193,E198) -> 0 | F192: 0 | G192: 0 | H192: 0 | I192: 0 | J192: 0 | L192: =SUM(L193,L198) -> 0 | M192: 0 | N192: 0 | O192: 0 | P192: 0 | Q192: 0 | R192: =SUM(R193,R198) -> 0 | S192: 0 | T192: 0 | U192: 0 | V192: 0 | W192: 0 | X192: 0 | Z192: =SUM(Z193,Z198) -> 0 | AA192: 0 | AB192: 0 | AC192: 0 | AD192: 0 | AE192: 0 | AF192: 0 | AG192: 0 | AH192: 0 | AI192: 0 | AJ192: 0 | AK192: 0 | AL192: 0 | AN192: =SUM(AN193,AN198) -> 0 | AO192: =SUM(AO193,AO198) -> 0 | AP192: =SUM(AP193,AP198) -> 0 | AQ192: =SUM(AQ193,AQ198) -> 0 | AR192: =SUM(AR193,AR198) -> 0
A193: 42 | B193: Rashodi za nabavu proizvedene dugotrajne imovine | C193: =SUM(C194:C197) -> 0 | D193: =SUM(D194:D197) -> 0 | E193: 0 | F193: 0 | G193: 0 | H193: 0 | I193: 0 | J193: 0 | L193: =SUM(L194:L197) -> 0 | M193: =SUM(M194:M197) -> 0 | N193: =SUM(N194:N197) -> 0 | O193: =SUM(O194:O197) -> 0 | P193: =SUM(P194:P197) -> 0 | Q193: =SUM(R193:AD193) -> 0 | AE193: =SUM(AF193:AR193) -> 0
A194: 421 | B194: Građevinski objekti | C194: =SUM(D194:P194) -> 0
A195: 422 | B195: Postrojenja i oprema | C195: =SUM(D195:P195) -> 0
A196: 423 | B196: Prijevozna sredstva | C196: =SUM(D196:P196) -> 0
A197: 424 | B197: Knjige, umjetnička djela i ostale izložbene vrijednosti | C197: =SUM(D197:P197) -> 0
A198: 45 | B198: Rashodi za dodatna ulaganja na nefinancijskoj imovini | C198: =SUM(C199:C202) -> 0 | D198: =SUM(D199:D202) -> 0 | E198: 0 | F198: 0 | G198: 0 | H198: 0 | I198: 0 | J198: 0 | L198: =SUM(L199:L202) -> 0 | M198: =SUM(M199:M202) -> 0 | N198: =SUM(N199:N202) -> 0 | O198: =SUM(O199:O202) -> 0 | P198: =SUM(P199:P202) -> 0 | Q198: =SUM(R198:AD198) -> 0 | AE198: =SUM(AF198:AR198) -> 0
A199: 451 | B199: Dodatna ulaganja na građevinskim objektima | C199: =SUM(D199:P199) -> 0
A200: 452 | B200: Dodatna ulaganja na postrojenjima i opremi | C200: =SUM(D200:P200) -> 0
A201: 453 | B201: Dodatna ulaganja na prijevoznim sredstvima | C201: =SUM(D201:P201) -> 0
A202: 454 | B202: Dodatna ulaganja za ostalu nefinancijsku imovinu | C202: =SUM(D202:P202) -> 0

Sheet Izvorska klasifikacija
B1: Izvor | D1: Oznaka prihoda iz računskog plana
B2: 1.1. | C2: Opći prihodi i primici proračunskih korisnika SDŽ | D2: 671
B3: U ovaj izvor proračunski korisnik uključuje prihode koje ostvari iz nadležnog proračuna (sredstva SDŽ)
C4: * prihodi za financiranje minimalnog standarda iz decentralizacijskih sredstava
C5: * prihodi iz županijskih matičnih sredstava
C6: * prihodi iz nenadležnih proračuna ostvareni kao pomoć i prihod za posebne namjene preko SDŽ
B7: 3.1. | C7: Vlastiti prihodi proračunskih korisnika SDŽ | D7: 641/661
B8: U ovaj izvor proračunski korisnik uključuje prihode koje ostvari obavljanjem poslova na tržištu i u tržišnim uvjetima, a koje poslove mogu obavljati i drugi pravni subjekti izvan općeg proračuna
C9: *prihodi od kamata | D9: 641
C10: *prihodi od zakupa i iznajmljivanja imovine | D10: 66151 | E10: *TIM4PIN, 6/2016, str.92
C11: *prihodi od pružanja ugostiteljskih usluga | D11: 661
C12: *prihodi od otkupa starog papira | D12: 661
C13: *prihodi od prodaje primjeraka školskog lista kojeg učenici sami izdaju | D13: 661
C14: *prihodi od prodaje godišnjaka | D14: 661
C15: *prihodi od prodaje učeničkih radova (bez obzira je li riječ o učeničkoj zadruzi ili radovima koji se prodaju kako bi se prikupila sredstva za nabavu određene opreme ili kao pomoć određenom učeniku | D15: 661
B16: 4.8. | C16: Prihodi za posebne namjene proračunskih korisnika SDŽ | D16: 651/652/673
B17: U ovaj izvor proračunski korisnik uključuje prihode čije su korištenje i namjena utvrđeni posebnim zakonima i propisima koje donosi Vlada RH; odnosno proračunski korisnik ga ostvaruje obavljanjem poslova iz osnovne djelatnosti na temelju posebnog propisa
C18: *prihodi od sufinanciranja cijena usluga, participacije i sl. (uplate roditelja za obrok u školama, uplate nekih neprofitnih organizacija kao Crveni križ ili Hrvatska zaklada za djecu koje pokrivaju cijenu obroka za djecu slabijeg imovinskig stanja | D18: 65264 | E18: *Ukoliko uplata Zaklade Hrvatska za djecu ide preko SDŽ, proračunski korisnik sredstva planira kao opći izvor na kontu 671
C19: *refundacije osiguravajućih kuća | D19: 65267
C20: * prihodi koje škola ostvari od izdavanja preslika svjedodžbi ili izdavanja potvrda o završenom školovanju | D20: 65268
C21: *prihod ostvaren od učenika temeljem Odluke škole za naplatu štete za uništeno laboratorijsko posuđe | D21: 65269
B22: 5.4. | C22: Pomoći proračunskim korisnicima SDŽ | D22: 636/634
B23: U ovaj izvor proračunski korisnik uključuje prihode koje ostvari od ostalih subjekata unutar općeg proračuna (izuzev nadležnog proračuna)
C24: *Državni proračun (za plaće zaposlenih i rashode za zaposlene) | D24: 636
C25: *općine i gradovi, te proračunski korisnici (Agencije, Zavodi) | D25: 636
C26: *izvanproračunski (HZZ) korisnici proračuna | D26: 634
C27: *proračunski korisnici istog proračuna | D27: 639
B28: 5.5.1. | C28: Pomoći EU za proračunske korisnike SDŽ | D28: 632/638
C29: * od Državnog proračuna | D29: 638
C30: * od međunarodnih organizacija | D30: 632
B31: 6.2. | C31: Donacije proračunskim korisnicima SDŽ | D31: 663
B32: U ovaj izvor uključuju se prihodi od koji se ostvaruju od fizičkih osoba, neprofitnih organizacija, trgovačkih društava i ostalih subjekata izvan opće države
B33: 7.2. | C33: Prihodi od prodaje ili zamjene nefinancijske imovine i naknade s naslova osiguranja proračunskih korisnika SDŽ | D33: 721
B34: U ovaj izvor uključuju se prihodi od koji se ostvaruju prodajom ili zamjenom nefinancijske imovine i od naknade štete s osnova osiguranja
C35: * prihodi s naslova osiguranja, refundacije štete i totalne štete | D35: 65267
B36: 8.2. | C36: Namjenski primici od zaduživanja proračunskih korisnika SDŽ | D36: 84
B37: U ovaj izvor uključuju se prihodi od financijske imovine i zaduživanja čija je namjena utvrđena posebnim ugovorima i/ili propisima
